bitfinex/quotes_ETHUSD_20240811
["timestamp","ask_amount","ask_price","bid_price","bid_amount"]
[1723401305909,5.31545,2633.9,2633.4,5.05050505]
[1723401306413,2.65777,2633.8,2633.4,5.05050505]
[1723401306614,2.65786,2633.7,2633.4,5.05050505]
[1723401306834,7.27,2634.2,2633.4,5.05050505]
[1723401307052,2.65795,2633.7,2633.4,5.05050505]
[1723401307236,2.65776,2633.8,2633.4,5.05050505]
[1723401308753,9.92741,2634.2,2633.7,2.2677]
[1723401309248,9.92741,2634.2,2633.7,2.76785111]
[1723401309730,9.92741,2634.2,2633.7,5.42564111]
[1723401310213,2.65741,2634.2,2633.7,5.42564111]
[1723401310754,2.65741,2634.2,2633.7,5.50157266]
[1723401312058,3.84081362,2634.7,2633.7,5.50157266]
[1723401312059,3.84049362,2635.0,2634.4,2.65714]
[1723401312412,2.65655,2635.0,2634.5,2.46011035]
[1723401312699,2.65635,2635.2,2634.6,2.65686]
[1723401312894,5.31277,2635.2,2634.6,2.65686]
[1723401313216,2.65716,2634.4,2633.9,2.3842]
[1723401313363,2.2669,2634.4,2633.5,2.65798]
[1723401313696,2.65768,2633.9,2633.4,7.43470505]
[1723401313994,2.65741,2634.2,2633.5,2.65802]
[1723401314205,0.5151,2634.2,2633.4,7.43470505]
[1723401314372,2.65763,2634.0,2633.4,10.09285505]
[1723401314770,2.65763,2634.0,2633.5,2.65803]
[1723401315163,0.22669,2634.3,2633.4,7.43470505]
[1723401315360,5.31442,2634.4,2633.7,5.31556]
[1723401315573,2.6572,2634.4,2633.7,5.31557]
[1723401315797,2.65733,2634.3,2633.7,2.65778]
[1723401315997,2.65733,2634.3,2633.7,5.31557]
[1723401316869,2.65733,2634.3,2633.7,2.65778]
[1723401317055,2.65733,2634.3,2633.5,0.74347051]
[1723401317056,0.831453,2634.3,2633.5,2.65798]
[1723401317281,3.0,2634.5,2633.5,2.65798]
[1723401317282,2.65742,2634.2,2633.5,2.65798]
[1723401317482,2.65719,2634.4,2633.7,2.65779]
[1723401317684,2.65727,2634.3,2633.7,2.65779]
[1723401317884,2.65719,2634.4,2633.6,2.65795]
[1723401317885,2.65741,2634.2,2633.6,2.65795]
[1723401318059,2.65745,2634.1,2633.5,2.658]
[1723401318463,2.65753,2634.1,2633.5,2.658]
[1723401319527,2.65753,2634.1,2633.5,5.31599]
[1723401319757,2.65731,2634.3,2633.7,2.65779]
[1723401319920,2.65731,2634.3,2633.7,5.31558]
[1723401320339,2.65731,2634.3,2633.7,5.31559]
[1723401320650,2.65731,2634.3,2633.7,2.65779]
[1723401321012,2.65745,2634.1,2633.5,3.9330955]
[1723401321216,2.65745,2634.1,2633.4,7.43470505]
[1723401321458,2.65768,2633.9,2633.4,7.43470505]
[1723401321766,5.31498,2634.1,2633.4,10.09283505]
[1723401322064,6.1724411,2634.1,2633.5,2.65798]
[1723401322458,2.65758,2634.0,2633.5,2.65798]
[1723401322969,0.8574611,2634.1,2633.5,2.65798]
[1723401323267,13.46394362,2634.7,2633.6,2.3842]
[1723401323472,2.65695,2634.6,2634.1,2.3842]
[1723401323770,2.220695,2634.6,2634.1,2.46011725]
[1723401323973,2.220695,2634.6,2634.1,5.11753725]
[1723401324479,12.28,2634.7,2634.1,5.11753725]
[1723401324659,7.27,2634.8,2634.3,2.65724]
[1723401324858,7.27,2634.8,2634.4,0.07590795]
[1723401325387,0.531277,2635.2,2634.5,5.04118]
[1723401325388,2.65645,2635.1,2634.5,5.04118]
[1723401325871,0.531277,2635.2,2634.7,2.65676]
[1723401326169,2.65655,2635.0,2634.5,2.3842]
[1723401326385,2.65664,2634.9,2634.5,2.3842]
[1723401326532,2.6569,2634.7,2634.2,2.3842]
[1723401327432,2.65677,2634.8,2634.2,5.04146]
[1723401327768,2.65677,2634.8,2634.3,2.65724]
[1723401328269,2.65693,2634.7,2634.2,2.3842]
[1723401328652,2.65677,2634.8,2634.2,2.3842]
[1723401328831,5.31359,2634.8,2634.2,5.04154]
[1723401329033,3.45084362,2635.3,2634.4,2.65714]
[1723401329034,2.65656,2635.0,2634.4,2.65714]
[1723401330966,2.2669,2635.3,2634.6,2.65694]
[1723401330967,4.92318,2635.3,2634.6,2.65694]
[1723401331166,2.65628,2635.3,2634.8,5.13834]
[1723401331367,2.65628,2635.3,2634.8,7.79503]
[1723401331570,2.6561,2635.5,2634.8,5.13829]
[1723401331733,3.22176,2635.4,2634.8,7.79497]
[1723401331930,3.22176,2635.4,2634.8,5.13828]
[1723401332146,3.22176,2635.4,2634.8,7.79497]
[1723401332370,3.22176,2635.4,2634.9,2.65663]
[1723401332578,3.22176,2635.4,2634.8,5.13828]
[1723401332869,4.98589,2635.7,2634.9,0.07589724]
[1723401333073,2.65567,2635.9,2635.2,2.65627]
[1723401333276,2.65626,2635.3,2635.0,2.4816]
[1723401333452,2.922036,2635.2,2634.7,2.65684]
[1723401333781,2.33,2635.6,2634.5,2.65695]
[1723401333782,5.31302,2635.1,2634.5,2.65695]
[1723401333959,2.6565,2635.1,2634.5,5.31394]
[1723401334145,2.6565,2635.1,2634.5,2.65695]
[1723401334339,2.6565,2635.1,2634.5,5.31394]
[1723401334535,2.6563,2635.3,2634.7,2.65682]
[1723401334977,5.31262,2635.3,2634.7,2.65682]
[1723401335150,2.6563,2635.3,2634.7,2.65682]
[1723401335485,2.65645,2635.1,2634.5,3.736544]
[1723401335640,2.922095,2635.1,2634.5,2.65699]
[1723401335839,2.65645,2635.1,2634.5,2.65699]
[1723401336036,2.65645,2635.1,2634.5,5.31398]
[1723401336280,2.65645,2635.1,2634.6,2.65687]
[1723401336771,5.31298,2635.1,2634.5,2.65699]
[1723401336972,2.65665,2634.9,2634.4,2.4816]
[1723401337181,5.844278,2635.1,2634.4,5.13867]
[1723401337543,5.844278,2635.1,2634.5,2.65704]
[1723401338045,3.187748,2635.1,2634.5,2.65704]
[1723401338459,9.92621,2635.4,2634.8,2.65666]
[1723401338858,9.92621,2635.4,2634.9,2.4816]
[1723401339680,7.27,2635.4,2635.0,2.65648]
[1723401339999,7.27,2635.4,2634.9,5.13819]
[1723401340382,7.27,2635.4,2634.9,5.6985602]
[1723401340764,9.92614,2635.4,2634.9,5.6985602]
[1723401342162,7.27,2635.4,2634.9,5.6985602]
[1723401342293,7.27,2635.4,2635.1,2.65643]
[1723401342494,14.9359,2635.7,2635.1,2.65643]
[1723401342495,17.59179,2635.7,2635.1,2.65643]
[1723401342696,7.27,2635.8,2635.3,2.65618]
[1723401342874,5.65569,2635.9,2635.4,5.13772]
[1723401343073,2.65562,2636.0,2635.4,5.13772]
[1723401343380,2.65562,2636.0,2635.4,2.4816]
[1723401344066,2.65574,2635.8,2635.4,2.4816]
[1723401344272,2.65565,2635.9,2635.4,2.4816]
[1723401344467,2.65554,2636.0,2635.4,5.13773]
[1723401344773,2.65554,2636.0,2635.5,2.65603]
[1723401344969,7.27,2636.1,2635.5,2.65597]
[1723401345200,7.27,2636.1,2635.5,3.17731531]
[1723401345377,9.92544,2636.1,2635.5,3.17731531]
[1723401346446,9.92544,2636.1,2635.5,5.83329531]
[1723401346602,9.92544,2636.1,2635.5,3.25319405]
[1723401347451,9.92544,2636.1,2635.6,2.65588]
[1723401348814,7.27,2636.1,2635.7,2.65581]
[1723401349023,7.27,2636.4,2635.8,5.13732]
[1723401349342,7.27,2636.4,2635.9,2.6556]
[1723401349637,9.92515,2636.4,2635.9,2.6556]
[1723401349848,5.31054,2636.3,2635.8,2.4816]
[1723401350042,2.65525,2636.3,2635.8,2.4816]
[1723401350707,2.65525,2636.3,2635.8,5.13731]
[1723401351310,2.65525,2636.3,2635.8,2.4816]
[1723401351535,0.992525,2636.2,2635.5,2.65603]
[1723401351813,0.992525,2636.2,2635.4,2.2737]
[1723401352845,2.65581,2635.8,2635.4,2.2737]
[1723401353911,2.65564,2635.9,2635.4,2.2737]
[1723401355347,2.6558,2635.8,2635.4,2.2737]
[1723401356347,2.65564,2635.9,2635.4,2.2737]
[1723401356652,2.65564,2635.9,2635.4,4.92982]
[1723401356834,2.65564,2635.9,2635.4,2.2737]
[1723401357264,5.31137,2635.9,2635.4,2.2737]
[1723401357927,2.65564,2635.9,2635.4,2.2737]
[1723401358249,2.65562,2636.0,2635.4,4.92978]
[1723401358455,2.65562,2636.0,2635.4,5.40964267]
[1723401358745,2.65564,2635.9,2635.4,2.2737]
[1723401358950,2.6555,2636.1,2635.4,2.34957893]
[1723401359134,2.6555,2636.1,2635.4,2.2737]
[1723401359466,0.3648025,2636.0,2635.4,2.2737]
[1723401359764,0.3648025,2636.0,2635.4,4.92974]
[1723401359926,0.3648025,2636.0,2635.5,2.73191893]
[1723401360126,0.992525,2636.2,2635.7,2.65576]
[1723401360354,7.27,2636.4,2635.9,2.2737]
[1723401360555,7.27,2636.4,2636.0,0.07586442]
[1723401360754,7.27,2636.7,2636.0,0.07586442]
[1723401360983,7.27,2636.7,2636.3,2.65517]
[1723401361359,7.27,2636.7,2636.4,2.65512]
[1723401361678,4.96618,2637.1,2636.5,2.65497]
[1723401361900,2.3117,2637.1,2636.6,2.65492]
[1723401362197,2.65465,2636.9,2636.4,4.92878]
[1723401362338,2.65465,2636.9,2636.2,2.65529]
[1723401362339,2.65478,2636.8,2636.2,2.65529]
[1723401362536,0.496648,2636.7,2636.2,2.65529]
[1723401362773,0.496648,2636.7,2636.2,2.65527]
[1723401363162,3.151478,2636.7,2636.2,2.65527]
[1723401363355,2.65483,2636.7,2636.2,2.65527]
[1723401363565,2.3117,2636.9,2635.8,2.65569]
[1723401363774,2.65512,2636.5,2635.8,2.65569]
[1723401364060,2.65526,2636.3,2635.8,2.65569]
[1723401364392,5.31021,2636.5,2635.8,5.31137]
[1723401364592,3.186111,2636.5,2635.9,2.65558]
[1723401364817,3.186111,2636.5,2636.0,2.65551]
[1723401364971,2.65481,2636.8,2636.0,2.65551]
[1723401365151,3.0,2636.9,2636.4,2.65507]
[1723401365355,2.65458,2637.0,2636.4,2.65507]
[1723401365919,5.30918,2637.0,2636.4,2.65507]
[1723401366055,2.65474,2636.8,2636.2,4.92897]
[1723401366255,2.65484,2636.7,2636.2,4.92897]
[1723401366513,5.30954,2636.8,2636.2,4.92897]
[1723401366794,2.65474,2636.8,2636.2,4.92897]
[1723401367092,2.920214,2636.8,2636.2,4.92897]
[1723401368363,2.65484,2636.7,2636.1,2.65543]
[1723401368560,7.9661,2637.2,2636.5,2.65496]
[1723401368755,4.032944,2637.1,2636.6,2.65492]
[1723401368992,6.687374,2637.1,2636.5,2.65496]
[1723401369296,6.687374,2637.1,2636.5,5.30993]
[1723401369471,2.65455,2637.0,2636.5,2.65496]
[1723401369674,5.30917,2637.0,2636.3,5.00471567]
[1723401369999,2.65464,2636.9,2636.4,2.65512]
[1723401370195,2.65455,2637.0,2636.5,2.65497]
[1723401371868,6.687374,2637.1,2636.5,2.65497]
[1723401372088,7.27,2637.3,2636.5,2.65497]
[1723401372271,6.20439,2637.2,2636.5,2.65497]
[1723401372489,2.65449,2637.1,2636.5,5.30994]
[1723401372800,2.65449,2637.1,2636.5,3.6864375]
[1723401373563,2.65449,2637.1,2636.6,2.65491]
[1723401373757,3.0,2637.2,2636.7,2.65478]
[1723401373973,3.0,2637.2,2636.7,3.28889575]
[1723401374261,7.27,2637.3,2636.8,5.1126]
[1723401374457,2.65434,2637.2,2636.8,2.4579]
[1723401374698,2.65434,2637.2,2636.7,3.28892575]
[1723401374881,7.27,2637.3,2636.8,3.24910057]
[1723401375193,7.27,2637.3,2636.9,2.65463]
[1723401375560,2.65418,2637.4,2636.9,2.65463]
[1723401375889,7.27,2637.6,2637.2,2.65431]
[1723401376122,2.65375,2637.8,2637.2,2.65431]
[1723401376291,5.30754,2637.8,2637.2,2.65431]
[1723401376627,5.30754,2637.8,2637.1,2.65437]
[1723401376628,2.65384,2637.7,2637.1,2.65437]
[1723401376834,2.2558,2637.5,2636.8,2.65472]
[1723401377132,2.65423,2637.3,2636.7,5.11266]
[1723401377288,2.65419,2637.4,2636.8,0.511268]
[1723401377494,2.65419,2637.4,2636.9,2.65462]
[1723401377689,2.65423,2637.3,2636.8,0.511268]
[1723401378845,2.65407,2637.5,2637.0,2.65452]
[1723401380133,2.65387,2637.7,2637.0,2.65444]
[1723401380313,2.65387,2637.7,2637.2,2.65432]
[1723401380516,27.11317,2637.9,2637.2,5.30856]
[1723401380715,2.65372,2637.8,2637.2,2.65424]
[1723401381236,2.65383,2637.7,2637.2,2.65424]
[1723401381594,5.30772,2637.7,2637.2,2.65424]
[1723401381790,3.011319,2637.8,2636.9,2.65461]
[1723401381791,2.65408,2637.5,2636.9,2.65461]
[1723401381993,2.65429,2637.3,2636.7,5.11264]
[1723401382192,2.65433,2637.2,2636.7,2.4579]
[1723401382696,2.2558,2637.5,2636.8,2.65472]
[1723401382697,2.65418,2637.4,2636.8,2.65472]
[1723401383031,2.65433,2637.2,2636.7,2.4579]
[1723401383339,2.65432,2637.3,2636.7,2.4579]
[1723401383629,7.56398,2637.5,2636.8,2.65464]
[1723401383803,2.6542,2637.4,2636.8,3.165894]
[1723401384194,2.65423,2637.3,2636.8,3.165894]
[1723401385126,2.65423,2637.3,2636.8,3.24173546]
[1723401385324,2.65423,2637.3,2636.8,3.165894]
[1723401385738,2.65408,2637.5,2637.0,2.6545]
[1723401385936,2.65388,2637.7,2637.1,2.79918273]
[1723401386110,2.65388,2637.7,2637.2,2.65427]
[1723401388132,2.65388,2637.7,2637.2,5.30854]
[1723401388339,2.65388,2637.7,2637.2,3.54087248]
[1723401389138,2.65388,2637.7,2637.2,6.19513248]
[1723401389444,7.27,2637.9,2637.2,3.54086248]
[1723401389598,2.65374,2637.8,2637.3,2.65421]
[1723401390196,2.65374,2637.8,2637.2,0.88660248]
[1723401390510,2.6542,2637.4,2636.8,2.4579]
[1723401390715,2.65435,2637.2,2636.7,2.65482]
[1723401391138,5.30835,2637.4,2636.8,2.65473]
[1723401391451,2.65417,2637.4,2636.8,2.65473]
[1723401391808,2.65423,2637.3,2636.8,2.65473]
[1723401392009,2.65423,2637.3,2636.5,5.00717]
[1723401392010,2.65445,2637.1,2636.5,5.00716]
[1723401392346,5.30896,2637.1,2636.5,5.00716]
[1723401392650,2.65445,2637.1,2636.5,7.66213]
[1723401393006,2.65445,2637.1,2636.6,2.65492]
[1723401393204,5.30857,2637.3,2636.7,2.65481]
[1723401393646,2.65428,2637.3,2636.7,2.65481]
[1723401393849,2.65449,2637.1,2636.5,5.00716]
[1723401394367,2.65471,2636.9,2636.3,2.65516]
[1723401394652,5.3094,2636.9,2636.3,3.155896]
[1723401394823,2.65469,2636.9,2636.3,5.811066]
[1723401395209,2.65469,2636.9,2636.3,3.155896]
[1723401395210,5.30938,2636.9,2636.3,3.155896]
[1723401397336,2.65469,2636.9,2636.3,3.155896]
[1723401397541,2.65469,2636.9,2636.4,0.5508096]
[1723401398647,2.65448,2637.1,2636.5,2.3522]
[1723401398960,2.65448,2637.1,2636.5,5.00715]
[1723401399128,2.65448,2637.1,2636.5,7.66211]
[1723401399663,2.65448,2637.1,2636.5,7.66212]
[1723401399953,5.309,2637.1,2636.5,5.00715]
[1723401400151,5.9656597,2637.1,2636.5,5.00591832]
[1723401400459,2.65456,2637.0,2636.5,5.00591832]
[1723401401312,0.6566597,2637.1,2636.5,5.00591832]
[1723401401513,2.6544,2637.2,2636.6,2.65486]
[1723401402315,2.65453,2637.0,2636.5,5.00590832]
[1723401403128,1.257857,2637.3,2636.5,2.35096832]
[1723401403448,4.257857,2637.3,2636.8,2.65467]
[1723401403631,1.257857,2637.3,2636.8,2.65467]
[1723401403950,7.27,2637.4,2636.9,2.3522]
[1723401404351,7.27,2637.4,2636.9,5.00674]
[1723401405461,7.27,2637.4,2636.9,5.08258222]
[1723401405758,7.27,2637.4,2636.9,5.00674]
[1723401406316,9.92413,2637.4,2636.9,2.3522]
[1723401406517,2.65423,2637.3,2636.9,2.3522]
[1723401406717,5.30852,2637.3,2636.7,2.65482]
[1723401406926,5.30854,2637.3,2636.7,2.65482]
[1723401407138,9.87421536,2637.4,2636.6,2.3522]
[1723401407328,2.65459,2637.0,2636.6,2.3522]
[1723401408365,2.65463,2636.9,2636.4,2.3522]
[1723401408517,2.65463,2636.9,2636.4,5.00733]
[1723401409272,2.65448,2637.1,2636.5,2.65497]
[1723401409439,3.7601259,2637.3,2636.6,2.65483]
[1723401409625,3.5554309,2637.2,2636.6,2.65483]
[1723401411261,0.9010209,2637.2,2636.7,2.65482]
[1723401411421,3.5553709,2637.2,2636.7,2.65482]
[1723401412426,3.5553709,2637.2,2636.5,2.65494]
[1723401412626,3.5553709,2637.2,2636.6,2.6549]
[1723401413162,0.9010209,2637.2,2636.7,2.65482]
[1723401413365,0.9010209,2637.2,2636.4,2.3522]
[1723401413660,3.7601259,2637.3,2636.7,2.65474]
[1723401413834,2.65431,2637.3,2636.7,2.65474]
[1723401414036,7.27,2637.4,2637.0,2.4151]
[1723401414465,2.65414,2637.4,2637.0,2.4151]
[1723401415136,1.18394362,2637.5,2637.1,2.6544]
[1723401415342,1.18394362,2637.6,2637.1,5.30876]
[1723401415669,1.18394362,2638.0,2637.5,5.30798]
[1723401415960,9.92348,2638.1,2637.5,2.65396]
[1723401416264,2.65359,2638.0,2637.5,2.65396]
[1723401416467,2.65381,2637.8,2637.4,0.07582441]
[1723401416624,2.65389,2637.7,2637.0,2.4151]
[1723401416824,2.65392,2637.7,2637.0,2.4151]
[1723401417043,2.65392,2637.7,2637.2,2.65427]
[1723401417665,6.25480362,2637.9,2637.3,2.65419]
[1723401417861,6.25480362,2637.9,2637.4,2.4151]
[1723401417862,5.96569347,2637.9,2637.4,2.4151]
[1723401418065,4.78174985,2637.9,2637.4,2.4151]
[1723401418790,1.18394362,2638.0,2637.5,2.65393]
[1723401418992,8.45394362,2638.1,2637.5,2.65393]
[1723401419197,2.65362,2637.9,2637.4,2.4151]
[1723401419490,2.65362,2637.9,2637.1,5.06946]
[1723401419491,2.65383,2637.7,2637.1,5.06946]
[1723401419794,2.65383,2637.7,2637.2,2.65432]
[1723401420161,2.65362,2637.9,2637.3,2.65421]
[1723401420359,2.65362,2637.9,2637.3,2.7300355]
[1723401420560,2.65362,2637.9,2637.3,3.43415555]
[1723401420756,2.65362,2637.9,2637.2,2.65426]
[1723401420980,2.65362,2637.9,2637.3,2.65415]
[1723401422095,2.65362,2637.9,2637.4,2.65412]
[1723401422300,9.92346,2638.1,2637.5,5.06911]
[1723401422478,1.56859951,2638.0,2637.5,5.06911]
[1723401422796,4.22217951,2638.0,2637.5,2.4151]
[1723401423294,9.92346,2638.1,2637.5,5.14488481]
[1723401423956,9.92346,2638.1,2637.6,2.65392]
[1723401423957,7.27,2638.1,2637.6,2.65392]
[1723401424162,7.27,2638.1,2637.7,0.07581921]
[1723401424377,7.27,2638.1,2637.9,5.06867]
[1723401426212,2.65313,2638.4,2637.9,5.06867]
[1723401426416,4.411751,2638.4,2637.9,5.06867]
[1723401426781,9.923,2638.6,2637.9,5.06866]
[1723401427101,9.923,2638.6,2638.1,2.65341]
[1723401427309,12.28,2638.8,2638.4,2.4151]
[1723401427480,12.28,2638.8,2638.4,5.06816]
[1723401428306,12.28,2638.8,2638.5,2.653]
[1723401428807,9.92237,2639.2,2638.6,2.65284]
[1723401428983,11.179823,2639.2,2638.6,2.65284]
[1723401429183,8.527453,2639.2,2638.7,2.7286002]
[1723401429515,8.527453,2639.2,2638.8,2.4151]
[1723401429739,7.27,2639.2,2638.8,2.49088514]
[1723401429896,7.27,2639.2,2639.0,2.65249]
[1723401430298,0.015,2639.6,2639.1,2.65239]
[1723401430704,0.015,2639.6,2639.0,2.65249]
[1723401430705,0.015,2639.6,2639.2,2.72801619]
[1723401431019,0.015,2639.6,2639.3,4.93951]
[1723401431225,0.015,2639.6,2639.3,2.2873]
[1723401431226,2.66698,2639.6,2639.3,2.2873]
[1723401431426,0.015,2639.6,2639.1,2.36307371]
[1723401431626,0.015,2639.6,2639.1,2.86462808]
[1723401432286,2.65191,2639.7,2639.1,2.86462808]
[1723401432486,7.27,2639.8,2639.1,2.86462808]
[1723401432487,7.27,2639.8,2639.2,2.65229]
[1723401432694,7.27,2639.8,2639.3,0.07576855]
[1723401433622,10.0,2640.0,2639.6,2.65191]
[1723401433822,10.0,2640.0,2639.7,2.2873]
[1723401434128,2.65163,2639.9,2639.4,2.2873]
[1723401434285,15.3032,2640.0,2639.4,4.93938]
[1723401434619,2.65171,2639.9,2639.4,2.2873]
[1723401434806,2.65178,2639.8,2639.4,2.2873]
[1723401435285,2.65162,2639.9,2639.4,2.781253]
[1723401435699,2.65162,2639.9,2639.4,5.433353]
[1723401436120,2.65162,2639.9,2639.5,0.07576185]
[1723401436323,10.0,2640.0,2639.5,0.07576185]
[1723401436523,10.0,2640.0,2639.5,3.27867334]
[1723401437091,10.0,2640.0,2639.6,5.0148985]
[1723401437310,10.0,2640.0,2639.6,2.2873]
[1723401437789,12.65155,2640.0,2639.6,2.2873]
[1723401438321,12.65157,2640.0,2639.4,2.65211]
[1723401438529,2.65163,2639.9,2639.4,0.493941]
[1723401438728,5.30359,2639.8,2639.3,2.2873]
[1723401438897,2.65182,2639.7,2639.3,2.2873]
[1723401439099,2.65193,2639.6,2639.3,2.2873]
[1723401439702,2.65201,2639.6,2639.3,2.2873]
[1723401440426,5.30357,2639.8,2639.3,2.2873]
[1723401440732,2.65183,2639.7,2639.3,2.2873]
[1723401441325,0.530359,2639.7,2638.8,2.2873]
[1723401441531,2.65231,2639.3,2638.8,2.2873]
[1723401441713,2.65206,2639.5,2638.8,2.2873]
[1723401441714,5.30416,2639.5,2638.8,4.93995]
[1723401441919,2.65206,2639.5,2638.8,2.2873]
[1723401442135,2.65234,2639.2,2638.8,2.2873]
[1723401442799,2.65262,2638.9,2638.3,2.6532]
[1723401443017,2.65262,2638.9,2638.4,2.2873]
[1723401443539,5.30579,2638.7,2638.1,2.2873]
[1723401443737,5.30579,2638.7,2638.1,2.781376]
[1723401443738,2.65289,2638.7,2638.1,2.781376]
[1723401443938,5.30578,2638.7,2638.1,2.781376]
[1723401444153,2.65289,2638.7,2638.1,2.781376]
[1723401444304,2.65289,2638.7,2638.1,5.434716]
[1723401444503,2.65289,2638.7,2638.2,0.8088146]
[1723401445339,2.65289,2638.7,2638.2,3.4621146]
[1723401445532,2.65265,2638.9,2638.2,3.4621146]
[1723401445837,2.65274,2638.8,2638.2,3.4621146]
[1723401446341,2.6529,2638.7,2638.2,0.8088146]
[1723401447730,5.30581,2638.7,2638.2,0.8088146]
[1723401447934,2.65292,2638.6,2638.2,0.8088146]
[1723401448139,2.65267,2638.9,2638.1,4.94071]
[1723401448440,2.65282,2638.7,2638.1,4.94071]
[1723401450644,2.65282,2638.7,2638.2,2.65331]
[1723401452050,2.65267,2638.9,2638.2,2.65325]
[1723401452248,2.65267,2638.9,2638.3,0.07579547]
[1723401452436,2.65267,2638.9,2638.4,2.65312]
[1723401452745,2.65267,2638.9,2638.5,0.07579089]
[1723401452948,3.0137,2639.1,2638.1,2.2873]
[1723401453148,2.65292,2638.6,2638.1,2.2873]
[1723401453633,2.65302,2638.5,2638.1,2.2873]
[1723401453815,2.65313,2638.4,2638.1,2.2873]
[1723401455728,2.65293,2638.6,2638.1,2.2873]
[1723401456140,2.65293,2638.6,2638.1,4.9407]
[1723401456336,2.65278,2638.8,2638.1,4.9407]
[1723401456538,2.65278,2638.8,2638.3,2.65321]
[1723401456740,2.65273,2638.8,2638.5,2.4731]
[1723401457951,2.65265,2638.9,2638.5,2.4731]
[1723401458137,2.65272,2638.8,2638.5,2.4731]
[1723401459053,5.30513,2639.0,2638.5,2.4731]
[1723401459253,7.27,2639.2,2638.5,2.4731]
[1723401459457,5.65243,2639.1,2638.6,0.07579265]
[1723401460231,2.65257,2639.0,2638.4,2.4731]
[1723401460432,2.65278,2638.8,2638.4,2.4731]
[1723401461656,2.65282,2638.7,2638.4,2.4731]
[1723401463169,2.65287,2638.7,2638.4,2.4731]
[1723401463938,5.30575,2638.7,2638.4,2.4731]
[1723401464344,5.30577,2638.7,2638.4,2.4731]
[1723401464549,2.65287,2638.7,2638.4,2.4731]
[1723401464739,5.30575,2638.7,2638.4,2.4731]
[1723401464949,2.65267,2638.9,2638.4,2.769817]
[1723401465150,2.65267,2638.9,2638.5,0.07579185]
[1723401466562,2.65272,2638.8,2638.5,0.07579185]
[1723401466865,2.65272,2638.8,2638.4,2.769817]
[1723401468059,2.65282,2638.7,2638.4,2.769817]
[1723401468264,2.65282,2638.7,2638.2,2.4731]
[1723401468425,2.6526,2639.0,2638.2,2.4731]
[1723401468760,2.65273,2638.8,2638.3,0.07579422]
[1723401469080,5.3052,2639.0,2638.3,3.24915664]
[1723401469231,2.65262,2638.9,2638.4,2.65311]
[1723401469432,2.65262,2638.9,2638.5,0.07579197]
[1723401469942,5.6525,2639.1,2638.5,0.07579197]
[1723401470135,2.65252,2639.0,2638.6,2.4731]
[1723401470733,5.30509,2639.0,2638.6,2.4731]
[1723401471163,2.65265,2638.9,2638.6,2.4731]
[1723401472143,2.65252,2639.0,2638.6,2.4731]
[1723401472432,2.65263,2638.9,2638.6,2.4731]
[1723401473368,2.65252,2639.0,2638.6,2.4731]
[1723401473572,2.65252,2639.0,2638.6,3.34234566]
[1723401474375,3.0,2639.1,2638.6,5.99522566]
[1723401474680,5.65247,2639.1,2638.6,3.41813392]
[1723401475036,5.65247,2639.1,2638.6,6.07103392]
[1723401476968,7.27,2639.2,2638.8,2.65271]
[1723401477285,7.27,2639.2,2638.8,2.72849116]
[1723401477854,7.27,2639.2,2638.7,0.60710339]
[1723401477855,9.92233,2639.2,2638.7,0.60710339]
[1723401478060,2.65246,2639.1,2638.8,0.83859634]
[1723401478258,2.65246,2639.1,2638.6,5.12596]
[1723401478791,2.65283,2638.7,2638.3,2.3645]
[1723401478969,2.65298,2638.6,2638.1,2.3645]
[1723401479172,2.65298,2638.6,2638.2,0.767141]
[1723401479410,2.65283,2638.7,2638.2,3.420451]
[1723401479572,5.30574,2638.7,2638.2,0.767141]
[1723401479776,2.65292,2638.6,2638.2,0.767141]
[1723401480116,2.65305,2638.5,2638.1,2.3645]
[1723401480258,3.46084362,2639.0,2638.1,2.3645]
[1723401480467,2.6532,2638.4,2637.7,2.3645]
[1723401480687,2.6532,2638.4,2637.9,2.65361]
[1723401480911,2.6532,2638.4,2637.7,5.01823]
[1723401480912,2.65318,2638.4,2637.7,5.01823]
[1723401481120,2.65324,2638.3,2637.7,5.01823]
[1723401481327,2.65324,2638.3,2637.8,2.65372]
[1723401481518,2.65318,2638.4,2637.9,2.65362]
[1723401482426,0.758305,2638.4,2637.7,2.3645]
[1723401482636,2.65342,2638.2,2637.6,2.65386]
[1723401482931,2.65339,2638.2,2637.6,2.65386]
[1723401483078,2.65339,2638.2,2637.6,5.30773]
[1723401483282,2.65318,2638.4,2637.6,2.65386]
[1723401483533,2.65322,2638.3,2637.9,2.3645]
[1723401484183,2.65334,2638.2,2637.9,2.3645]
[1723401484385,2.65344,2638.1,2637.7,0.265386]
[1723401484584,2.65344,2638.1,2637.6,5.01836]
[1723401484780,2.65344,2638.1,2637.6,2.3645]
[1723401485053,5.30694,2638.1,2637.6,2.3645]
[1723401485186,2.65344,2638.1,2637.6,2.3645]
[1723401485822,1.18394362,2638.4,2637.4,5.01854]
[1723401485823,2.65368,2637.9,2637.4,5.01854]
[1723401487940,2.65348,2638.1,2637.4,5.01854]
[1723401488240,1.18394362,2638.3,2637.6,2.3645]
[1723401488241,2.65327,2638.3,2637.6,2.3645]
[1723401488399,2.65327,2638.3,2637.7,0.31984086]
[1723401488736,6.11391362,2638.5,2637.6,2.3645]
[1723401488737,2.65337,2638.2,2637.6,2.3645]
[1723401489529,2.65337,2638.2,2637.6,5.01842]
[1723401489734,2.65346,2638.1,2637.6,5.01842]
[1723401489910,2.65352,2638.0,2637.6,2.3645]
[1723401490334,2.65337,2638.2,2637.7,0.07581491]